[Event "DVM U14w 2019"]
[Site "Neumuenster"]
[Date "2019.12.28"]
[Round "3"]
[White "Albrecht, Angelique"]
[Black "Sinner, Joselyne"]
[Result "0-1"]
[ECO "C47"]
[WhiteElo "1219"]
[BlackElo "1407"]
[Annotator "NA RC"]
[PlyCount "72"]
[EventDate "2019.12.27"]
[EventType "team-tourn"]
[EventRounds "7"]
[EventCountry "GER"]
[SourceTitle "playchess.com"]
[Source "ChessBase"]
[SourceQuality "1"]
[WhiteTeam "SV Multatuli Ingelheim"]
[BlackTeam "SG Porz"]
[BlackTeamCountry "GER"]
[TimeControl "40/5400+30:1800+30"]

1. e4 {[%emt 0:00:00]} e5 {[%emt 0:00:00]} 2. Nf3 {[%emt 0:00:00]} Nc6 {[%emt 0:00:00]} 3. Nc3 {[%emt 0:00:07]} Nf6 {[%emt 0:00:00]} 4. Bc4 {[%emt 0:00:22]} Nxe4 {[%emt 0:00:39]} 5. Nxe4 {[%emt 0:02:32]} d5 {[%emt 0:00:06]} 6. Bb5 {[%emt 0:00:05]} dxe4 {[%emt 0:00:52]} 7. Bxc6+ {[%emt 0:00:07]} bxc6 {[%emt 0:00:09]} 8. Nxe5 {[%emt 0:00:16]} Qf6 {[%emt 0:04:18]} 9. Nc4 {[%emt 0:02:37]} Ba6 {[%emt 0:03:04]} 10. d3 {[%emt 0:03:57]} exd3 {[%emt 0:03:43]} 11. Qxd3 {[%emt 0:00:59]} Qe6+ {[%emt 0:00:33]} 12. Be3 {[%emt 0:10:24]} Qxc4 {[%emt 0:04:38]} 13. Qxc4 {[%emt 0:02:07]} Bxc4 {[%emt 0:00:07]} 14. b3 {[%emt 0:01:03]} Bb4+ {[%emt 0:02:40]} 15. Kd1 {[%emt 0:01:57]} Rd8+ {[%emt 0:01:30]} 16. Kc1 {[%emt 0:00:35]} Bd5 {[%emt 0:01:44]} 17. Kb2 {[%emt 0:01:07]} a6 {[%emt 0:01:13]} 18. a3 {[%emt 0:03:28]} Bd6 {[%emt 0:02:18]} 19. Rhe1 {[%emt 0:00:41]} O-O {[%emt 0:02:58]} 20. Rh1 {[%emt 0:02:04]} Bxg2 {[%emt 0:04:32]} 21. Rhg1 {[%emt 0:00:28]} Be4 {[%emt 0:01:19]} 22. Rg4 {[%emt 0:01:25]} Bf3 {[%emt 0:02:19]} 23. Rg5 {[%emt 0:01:59]} Bxh2 {[%emt 0:01:33]} 24. Rf5 {[%emt 0:01:25]} Bg4 {[%emt 0:03:51]} 25. Rg5 {[%emt 0:00:54]} f5 {[%emt 0:00:36]} 26. Rf1 {[%emt 0:00:55]} Be5+ {[%emt 0:01:19]} 27. Kb1 {[%emt 0:01:00]} Bf6 {[%emt 0:00:12]} 28. f3 {[%emt 0:00:10]} h6 {[%emt 0:03:43]} 29. Rxg4 {[%emt 0:04:41]} fxg4 {[%emt 0:00:09]} 30. fxg4 {[%emt 0:00:05]} Rfe8 {[%emt 0:00:18]} 31. Bf2 {[%emt 0:00:35]} Rd2 {[%emt 0:00:51]} 32. Kc1 {[%emt 0:00:25]} Ree2 {[%emt 0:00:27]} 33. Be3 {[%emt 0:01:35]} Rxc2+ {[%emt 0:00:37]} 34. Kd1 {[%emt 0:00:33]} Bg5 {[%emt 0:01:02]} 35. Bf2 {[%emt 0:01:04]} Red2+ {[%emt 0:00:22]} 36. Ke1 {[%emt 0:00:52]} Rc1# {[%emt 0:00:04] normal} 0-1

[Event "DVM U14w 2019"]
[Site "Neumuenster"]
[Date "2019.12.28"]
[Round "3"]
[White "Hafermann, Lara"]
[Black "Fischbach, Elina"]
[Result "1-0"]
[ECO "D02"]
[WhiteElo "1161"]
[BlackElo "799"]
[Annotator "NA RC"]
[PlyCount "39"]
[EventDate "2019.12.27"]
[EventType "team-tourn"]
[EventRounds "7"]
[EventCountry "GER"]
[SourceTitle "playchess.com"]
[Source "ChessBase"]
[SourceQuality "1"]
[WhiteTeam "SC Borussia Lichtenberg"]
[BlackTeam "Karlsruher SF"]
[TimeControl "40/5400+30:1800+30"]

1. d4 {[%emt 0:00:00]} d5 {[%emt 0:00:00]} 2. Nf3 {[%emt 0:00:00]} Nc6 {[%emt 0:00:00]} 3. e3 {[%emt 0:00:00]} Bg4 {[%emt 0:00:07]} 4. h3 {[%emt 0:00:00]} Bxf3 {[%emt 0:00:22]} 5. Qxf3 {[%emt 0:00:00]} e6 {[%emt 0:00:09]} 6. c3 {[%emt 0:00:17]} Qd7 {[%emt 0:00:43]} 7. Bd3 {[%emt 0:00:14]} Nf6 {[%emt 0:00:28]} 8. Nd2 {[%emt 0:00:08]} Bd6 {[%emt 0:00:40]} 9. e4 {[%emt 0:00:13]} O-O {[%emt 0:01:39]} 10. e5 {[%emt 0:00:07]} Be7 {[%emt 0:00:35]} 11. exf6 {[%emt 0:00:10]} Bxf6 {[%emt 0:00:21]} 12. O-O {[%emt 0:00:11]} h6 {[%emt 0:05:25]} 13. Qg3 {[%emt 0:02:02]} g5 {[%emt 0:15:02]} 14. Nf3 {[%emt 0:01:06]} Qd8 {[%emt 0:10:29]} 15. h4 {[%emt 0:02:40]} Qe7 {[%emt 0:04:01]} 16. hxg5 {[%emt 0:00:15]} hxg5 {[%emt 0:00:26]} 17. Bxg5 {[%emt 0:00:18]} Bxg5 {[%emt 0:01:00]} 18. Nxg5 {[%emt 0:00:10]} Rfc8 {[%emt 0:01:23]} 19. Nxe6+ {[%emt 0:00:59]} Kh8 {[%emt 0:00:51]} 20. Qg7# {normal} 1-0

[Event "DVM U14w 2019"]
[Site "Neumuenster"]
[Date "2019.12.28"]
[Round "3"]
[White "Siegel, Irene"]
[Black "Gyácsok, Dzvinka"]
[Result "1/2-1/2"]
[ECO "C44"]
[WhiteElo "1004"]
[BlackElo "997"]
[Annotator "NA RC"]
[PlyCount "77"]
[EventDate "2019.12.27"]
[EventType "team-tourn"]
[EventRounds "7"]
[EventCountry "GER"]
[SourceTitle "playchess.com"]
[Source "ChessBase"]
[SourceQuality "1"]
[WhiteTeam "SG Porz"]
[BlackTeam "SV Multatuli Ingelheim"]
[TimeControl "40/5400+30:1800+30"]

1. e4 {[%emt 0:00:00]} e5 {[%emt 0:00:00]} 2. Nf3 {[%emt 0:00:00]} Nc6 {[%emt 0:00:00]} 3. d4 {[%emt 0:00:00]} d6 {[%emt 0:03:33]} 4. Bc4 {[%emt 0:03:04]} Bg4 {[%emt 0:01:04]} 5. O-O {[%emt 0:00:41]} Nxd4 {[%emt 0:01:46]} 6. Be2 {[%emt 0:00:47]} Nxe2+ {[%emt 0:06:12]} 7. Qxe2 {[%emt 0:00:13]} c6 {[%emt 0:02:37]} 8. Nc3 {[%emt 0:00:14]} Nf6 {[%emt 0:00:51]} 9. Rd1 {[%emt 0:05:35]} d5 {[%emt 0:02:08]} 10. exd5 {[%emt 0:00:44]} Bxf3 {[%emt 0:01:14]} 11. Qxf3 {[%emt 0:00:40]} Bb4 {[%emt 0:02:22]} 12. dxc6 {[%emt 0:00:46]} Qc7 {[%emt 0:01:31]} 13. cxb7 {[%emt 0:02:01]} Rb8 {[%emt 0:00:21]} 14. Nd5 {[%emt 0:00:36]} Nxd5 {[%emt 0:03:15]} 15. Qxd5 {[%emt 0:02:51]} O-O {[%emt 0:00:19]} 16. Qe4 {[%emt 0:01:08]} Rxb7 {[%emt 0:00:46]} 17. Qg4 {[%emt 0:01:46]} g6 {[%emt 0:00:49]} 18. Bh6 {[%emt 0:02:25]} Re8 {[%emt 0:00:34]} 19. Qg5 {[%emt 0:02:05]} Bf8 {[%emt 0:01:00]} 20. Rd3 {[%emt 0:01:50]} Qxc2 {[%emt 0:00:44]} 21. Rh3 {[%emt 0:00:51]} Rd7 {[%emt 0:01:45]} 22. g3 {[%emt 0:01:10]} Red8 {[%emt 0:05:09]} 23. Qg4 {[%emt 0:01:27]} Bc5 {[%emt 0:02:37]} 24. Qf3 {[%emt 0:01:14]} Rd6 {[%emt 0:05:03]} 25. Rf1 {[%emt 0:01:32]} e4 {[%emt 0:01:15]} 26. Qf4 {[%emt 0:00:57]} Rd1 {[%emt 0:04:41]} 27. Rxd1 {[%emt 0:03:48]} Rxd1+ {[%emt 0:11:10]} 28. Kg2 {[%emt 0:01:00]} Qxb2 {[%emt 0:03:35]} 29. g4 {[%emt 0:02:05]} e3 {[%emt 0:03:18]} 30. Rxe3 {[%emt 0:01:34]} Bxe3 {[%emt 0:00:55]} 31. Qxe3 {[%emt 0:00:13]} Qb7+ {[%emt 0:01:50]} 32. Kh3 {[%emt 0:00:37]} Qd7 {[%emt 0:01:22]} 33. Qe5 {[%emt 0:01:54]} f6 {[%emt 0:01:29]} 34. Qxf6 {[%emt 0:00:33]} Qf7 {[%emt 0:02:46]} 35. Qe5 {[%emt 0:03:28]} Rd8 {[%emt 0:01:34]} 36. f4 {[%emt 0:01:09]} Re8 {[%emt 0:01:38]} 37. Qd4 {[%emt 0:01:16]} g5 {[%emt 0:05:59]} 38. fxg5 {[%emt 0:01:53]} Re2 {[%emt 0:00:40]} 39. Kg3 {[%emt 0:01:07] normal} 1/2-1/2

[Event "DVM U14w 2019"]
[Site "Neumuenster"]
[Date "2019.12.28"]
[Round "3"]
[White "Lenger, Julia"]
[Black "Halas, Neele Zoe"]
[Result "*"]
[ECO "D02"]
[WhiteElo "856"]
[BlackElo "1076"]
[Annotator "NA RC"]
[PlyCount "39"]
[EventDate "2019.12.27"]
[EventType "team-tourn"]
[EventRounds "7"]
[EventCountry "GER"]
[SourceTitle "playchess.com"]
[Source "ChessBase"]
[SourceQuality "1"]
[WhiteTeam "SC Papenburg"]
[BlackTeam "SG Leipzig"]
[TimeControl "40/5400+30:1800+30"]

1. Nf3 {[%emt 0:00:00]} d5 {[%emt 0:00:00]} 2. d4 {[%emt 0:00:00]} Nf6 {[%emt 0:00:02]} 3. g3 {[%emt 0:00:00]} Nc6 {[%emt 0:00:24]} 4. Bg2 {[%emt 0:01:47]} Bf5 {[%emt 0:04:57]} 5. Ne5 {[%emt 0:01:58] unterminated} Qd6 {[%emt 0:09:20] unterminated} 6. Nxc6 {[%emt 0:00:43] unterminated} Qxc6 {[%emt 0:00:31] unterminated} 7. c3 {[%emt 0:02:52] unterminated} e6 {[%emt 0:06:18] unterminated} 8. Nd2 {[%emt 0:03:25] unterminated} Be7 {[%emt 0:05:12] unterminated} 9. Qb3 {[%emt 0:02:52] unterminated} O-O {[%emt 0:04:43] unterminated} 10. O-O {[%emt 0:05:47] unterminated} b6 {[%emt 0:07:04] unterminated} 11. c4 {[%emt 0:08:08] unterminated} Qd7 {[%emt 0:03:20] unterminated} 12. Re1 {[%emt 0:06:38] unterminated} Rac8 {[%emt 0:04:35] unterminated} 13. cxd5 {[%emt 0:02:18] unterminated} exd5 {[%emt 0:01:04] unterminated} 14. e4 {[%emt 0:01:45]} dxe4 {[%emt 0:00:19] unterminated} 15. Qc3 {[%emt 0:06:25] unterminated} Qd5 {[%emt 0:09:53] unterminated} 16. Nb3 {[%emt 0:06:48] unterminated} c5 {[%emt 0:03:24] unterminated} 17. dxc5 {[%emt 0:01:22]} Bxc5 {[%emt 0:00:17] unterminated} 18. Be3 {[%emt 0:03:06] unterminated} Bxe3 {[%emt 0:03:32] unterminated} 19. Qxe3 {[%emt 0:01:35] unterminated} Rfe8 {[%emt 0:07:43] unterminated} 20. Rad1 {[%emt 0:03:54] unterminated} *

[Event "DVM U14w 2019"]
[Site "Neumuenster"]
[Date "2019.12.28"]
[Round "4"]
[White "Dietz, Kristin"]
[Black "Reuter, Elisa"]
[Result "1-0"]
[ECO "B33"]
[WhiteElo "1946"]
[BlackElo "1850"]
[Annotator "NA"]
[PlyCount "157"]
[EventDate "2019.12.27"]
[EventType "team-tourn"]
[EventRounds "7"]
[EventCountry "GER"]
[SourceTitle "playchess.com"]
[Source "ChessBase"]
[SourceQuality "1"]
[WhiteTeam "USV Halle"]
[BlackTeam "SG Leipzig"]
[WhiteTeamCountry "GER"]
[BlackTeamCountry "GER"]
[TimeControl "40/5400+30:1800+30"]

1. e4 {[%emt 0:00:00]} c5 {[%emt 0:00:00]} 2. Nf3 {[%emt 0:00:00]} Nc6 {[%emt 0:00:00]} 3. d4 {[%emt 0:00:00]} cxd4 {[%emt 0:00:00]} 4. Nxd4 {[%emt 0:00:00]} Nf6 {[%emt 0:00:00]} 5. Nc3 {[%emt 0:00:15]} e5 {[%emt 0:00:00]} 6. Ndb5 {[%emt 0:00:30]} d6 {[%emt 0:00:00]} 7. Bg5 {[%emt 0:00:34]} a6 {[%emt 0:00:02]} 8. Na3 {[%emt 0:00:18]} b5 {[%emt 0:00:08]} 9. Nd5 {[%emt 0:00:07]} Be7 {[%emt 0:00:06]} 10. Bxf6 {[%emt 0:01:40]} Bxf6 {[%emt 0:00:06]} 11. Be2 {[%emt 0:02:25]} Bg5 {[%emt 0:01:28]} 12. O-O {[%emt 0:04:33]} O-O {[%emt 0:00:07]} 13. c3 {[%emt 0:13:18]} Be6 {[%emt 0:01:27]} 14. Nc2 {[%emt 0:02:32]} f5 {[%emt 0:05:47]} 15. Bf3 {[%emt 0:02:51]} f4 {[%emt 0:02:56]} 16. a4 {[%emt 0:08:58]} bxa4 {[%emt 0:02:30]} 17. Rxa4 {[%emt 0:00:47]} Ne7 {[%emt 0:01:39]} 18. Qd3 {[%emt 0:04:44]} Nxd5 {[%emt 0:01:38]} 19. exd5 {[%emt 0:00:07]} Bf5 {[%emt 0:00:12]} 20. Be4 {[%emt 0:00:11]} Bxe4 {[%emt 0:00:37]} 21. Qxe4 {[%emt 0:00:18]} Qb6 {[%emt 0:07:44]} 22. Qb4 {[%emt 0:04:06]} Qc7 {[%emt 0:04:34]} 23. Qc4 {[%emt 0:08:39]} Qxc4 {[%emt 0:05:09]} 24. Rxc4 {[%emt 0:00:03]} Rfb8 {[%emt 0:00:41]} 25. Rb1 {[%emt 0:02:11]} Rb5 {[%emt 0:02:13]} 26. Ra4 {[%emt 0:04:09]} Rxd5 {[%emt 0:02:56]} 27. Nb4 {[%emt 0:01:02]} Rb5 {[%emt 0:05:04]} 28. Rxa6 {[%emt 0:02:02]} Rxa6 {[%emt 0:02:07]} 29. Nxa6 {[%emt 0:00:07]} Bd8 {[%emt 0:03:17]} 30. Nb4 {[%emt 0:01:19]} Ba5 {[%emt 0:01:53]} 31. Na2 {[%emt 0:00:19]} Bb6 {[%emt 0:01:18]} 32. b4 {[%emt 0:01:13]} Rd5 {[%emt 0:01:00]} 33. c4 {[%emt 0:03:42]} Rd2 {[%emt 0:00:28]} 34. Nc3 {[%emt 0:00:05]} Bxf2+ {[%emt 0:02:43]} 35. Kf1 {[%emt 0:00:07]} Be3 {[%emt 0:00:32]} 36. b5 {[%emt 0:03:29]} Rc2 {[%emt 0:04:21]} 37. Ne4 {[%emt 0:00:39]} Rxc4 {[%emt 0:01:48]} 38. Nxd6 {[%emt 0:00:06]} Rd4 {[%emt 0:00:52]} 39. Nf5 {[%emt 0:01:03]} Rd7 {[%emt 0:00:12]} 40. Nxe3 {[%emt 0:00:20]} fxe3 {[%emt 0:00:04]} 41. Ke2 {[%emt 0:30:08]} Kf7 {[%emt 0:31:49]} 42. Kxe3 {[%emt 0:00:08]} Ke6 {[%emt 0:00:54]} 43. b6 {[%emt 0:00:23]} Rb7 {[%emt 0:00:06]} 44. Ke4 {[%emt 0:00:09]} Kd6 {[%emt 0:01:27]} 45. Rb2 {[%emt 0:02:00]} Ke6 {[%emt 0:01:05]} 46. Rb3 {[%emt 0:04:55]} Kd6 {[%emt 0:00:48]} 47. Rb5 {[%emt 0:06:26]} Kc6 {[%emt 0:00:30]} 48. Rb3 {[%emt 0:00:26]} Kd6 {[%emt 0:00:04]} 49. h4 {[%emt 0:01:00]} Ke6 {[%emt 0:02:24]} 50. h5 {[%emt 0:01:14]} Kd6 {[%emt 0:00:34]} 51. g4 {[%emt 0:02:17]} h6 {[%emt 0:01:21]} 52. Rb2 {[%emt 0:02:36]} Ke6 {[%emt 0:00:15]} 53. Rb1 {[%emt 0:00:23]} Kd6 {[%emt 0:00:12]} 54. Kf5 {[%emt 0:02:31]} Rf7+ {[%emt 0:00:35]} 55. Kg6 {[%emt 0:00:22]} Rb7 {[%emt 0:00:03]} 56. g5 {[%emt 0:04:08]} hxg5 {[%emt 0:00:06]} 57. Kxg5 {[%emt 0:00:04]} Ke6 {[%emt 0:00:18]} 58. Rb5 {[%emt 0:02:27]} Kd6 {[%emt 0:00:24]} 59. Kf5 {[%emt 0:00:18]} Rf7+ {[%emt 0:01:05]} 60. Ke4 {[%emt 0:00:21]} Rb7 {[%emt 0:00:03]} 61. Rb1 {[%emt 0:00:09]} Ke6 {[%emt 0:00:06]} 62. Rg1 {[%emt 0:01:53]} Kd6 {[%emt 0:04:00]} 63. Rg6+ {[%emt 0:00:30]} Kc5 {[%emt 0:00:09]} 64. Kxe5 {[%emt 0:00:09]} Re7+ {[%emt 0:00:31]} 65. Re6 {[%emt 0:00:46]} Rb7 {[%emt 0:00:25]} 66. Kf5 {[%emt 0:01:21]} Kd5 {[%emt 0:00:41]} 67. Re5+ {[%emt 0:00:22]} Kd6 {[%emt 0:00:27]} 68. Rb5 {[%emt 0:00:42]} Kc6 {[%emt 0:00:53]} 69. Rb1 {[%emt 0:00:09]} Kd6 {[%emt 0:00:06]} 70. Kg6 {[%emt 0:03:50]} Kd5 {[%emt 0:02:42]} 71. Rf1 {[%emt 0:02:39]} Ke6 {[%emt 0:00:10]} 72. Rc1 {[%emt 0:00:26]} Rxb6 {[%emt 0:02:05]} 73. Re1+ {[%emt 0:01:28]} Kd7+ {[%emt 0:00:53]} 74. Kxg7 {[%emt 0:00:07]} Rb2 {[%emt 0:00:35]} 75. Rg1 {[%emt 0:00:00]} Ke6 {[%emt 0:00:00]} 76. h6 {[%emt 0:00:00]} Rb7+ {[%emt 0:00:00]} 77. Kg6 {[%emt 0:00:00]} Rb8 {[%emt 0:00:00]} 78. h7 {[%emt 0:00:00]} Ke5 {[%emt 0:00:00]} 79. Rh1 {[%emt 0:00:00] normal} 1-0

[Event "DVM U14w 2019"]
[Site "Neumuenster"]
[Date "2019.12.28"]
[Round "4"]
[White "Stowicek, Yara Mathilda"]
[Black "Nguyen, Jenny Ha-Linh"]
[Result "1-0"]
[ECO "B13"]
[WhiteElo "1682"]
[BlackElo "1387"]
[Annotator "NA"]
[PlyCount "67"]
[EventDate "2019.12.27"]
[EventType "team-tourn"]
[EventRounds "7"]
[EventCountry "GER"]
[SourceTitle "playchess.com"]
[Source "ChessBase"]
[SourceQuality "1"]
[WhiteTeam "USV Halle"]
[BlackTeam "SG Leipzig"]
[WhiteTeamCountry "GER"]
[BlackTeamCountry "GER"]
[TimeControl "40/5400+30:1800+30"]

1. e4 {[%emt 0:00:00]} c6 {[%emt 0:00:00]} 2. d4 {[%emt 0:00:00]} d5 {[%emt 0:00:00]} 3. exd5 {[%emt 0:00:21]} cxd5 {[%emt 0:00:00]} 4. Bd3 {[%emt 0:00:09]} Nc6 {[%emt 0:00:00]} 5. c3 {[%emt 0:00:08]} Qc7 {[%emt 0:01:08]} 6. h3 {[%emt 0:02:28]} Nf6 {[%emt 0:03:36]} 7. Nf3 {[%emt 0:00:31]} e5 {[%emt 0:01:00]} 8. dxe5 {[%emt 0:00:50]} Nxe5 {[%emt 0:00:09]} 9. Bc2 {[%emt 0:01:14]} Bd6 {[%emt 0:01:18]} 10. O-O {[%emt 0:00:46]} O-O {[%emt 0:00:34]} 11. Bg5 {[%emt 0:00:36]} Ned7 {[%emt 0:07:40]} 12. Nd4 {[%emt 0:02:48]} a6 {[%emt 0:03:19]} 13. Nd2 {[%emt 0:02:14]} b5 {[%emt 0:02:04]} 14. N2f3 {[%emt 0:01:36]} Bb7 {[%emt 0:01:15]} 15. Nf5 {[%emt 0:09:00]} Bc5 {[%emt 0:03:33]} 16. N3d4 {[%emt 0:02:20]} Rac8 {[%emt 0:02:16]} 17. Rc1 {[%emt 0:01:56]} Ba7 {[%emt 0:07:41]} 18. Bh4 {[%emt 0:01:25]} Qb6 {[%emt 0:06:00]} 19. Ne7+ {[%emt 0:01:02]} Kh8 {[%emt 0:00:24]} 20. Nxc8 {[%emt 0:00:25]} Rxc8 {[%emt 0:00:03]} 21. Re1 {[%emt 0:01:37]} Qd8 {[%emt 0:03:25]} 22. Nf5 {[%emt 0:02:56]} Bc5 {[%emt 0:03:09]} 23. Re2 {[%emt 0:09:02]} Nf8 {[%emt 0:03:48]} 24. Bg3 {[%emt 0:08:20]} Ne6 {[%emt 0:00:30]} 25. Qd2 {[%emt 0:02:25]} h6 {[%emt 0:01:23]} 26. Be5 {[%emt 0:02:07]} Kg8 {[%emt 0:06:34]} 27. Qd3 {[%emt 0:10:25]} Nf8 {[%emt 0:02:17]} 28. Qg3 {[%emt 0:16:55]} Ng6 {[%emt 0:01:32]} 29. Nxh6+ {[%emt 0:05:02]} Kf8 {[%emt 0:02:16]} 30. Bxg6 {[%emt 0:02:13]} fxg6 {[%emt 0:01:21]} 31. Qxg6 {[%emt 0:00:12]} Qd7 {[%emt 0:00:45]} 32. Bxf6 {[%emt 0:01:22]} Rc6 {[%emt 0:00:59]} 33. Bxg7+ {[%emt 0:00:19]} Qxg7 {[%emt 0:00:11]} 34. Qe8# {[%emt 0:00:11] normal} 1-0

[Event "DVM U14w 2019"]
[Site "Neumuenster"]
[Date "2019.12.28"]
[Round "4"]
[White "Buchholz, Maja"]
[Black "Ramien, Hannah"]
[Result "1-0"]
[ECO "A20"]
[WhiteElo "1666"]
[BlackElo "1439"]
[Annotator "NA"]
[PlyCount "79"]
[EventDate "2019.12.27"]
[EventType "team-tourn"]
[EventRounds "7"]
[EventCountry "GER"]
[SourceTitle "playchess.com"]
[Source "ChessBase"]
[SourceQuality "1"]
[WhiteTeam "VSG 1880 Offenbach"]
[BlackTeam "SG Porz"]
[WhiteTeamCountry "GER"]
[BlackTeamCountry "GER"]
[TimeControl "40/5400+30:1800+30"]

1. c4 {[%emt 0:00:00]} e5 {[%emt 0:00:00]} 2. g3 {[%emt 0:00:00]} Nf6 {[%emt 0:00:00]} 3. Bg2 {[%emt 0:00:00]} Nc6 {[%emt 0:00:35]} 4. Nc3 {[%emt 0:00:00]} Bc5 {[%emt 0:00:26]} 5. e3 {[%emt 0:00:02]} d6 {[%emt 0:00:51]} 6. Nge2 {[%emt 0:00:08]} Bd7 {[%emt 0:01:19]} 7. O-O {[%emt 0:00:24]} O-O {[%emt 0:02:01]} 8. a3 {[%emt 0:00:42]} a5 {[%emt 0:02:30]} 9. Rb1 {[%emt 0:00:42]} Re8 {[%emt 0:12:46]} 10. d4 {[%emt 0:02:30]} exd4 {[%emt 0:03:46]} 11. exd4 {[%emt 0:00:07]} Bb6 {[%emt 0:00:22]} 12. b4 {[%emt 0:00:54]} axb4 {[%emt 0:00:22]} 13. axb4 {[%emt 0:00:06]} Bf5 {[%emt 0:00:40]} 14. Rb2 {[%emt 0:00:57]} Ne4 {[%emt 0:12:20]} 15. Be3 {[%emt 0:01:28]} Nxc3 {[%emt 0:03:15]} 16. Nxc3 {[%emt 0:00:13]} Ra3 {[%emt 0:01:46]} 17. Qd2 {[%emt 0:04:17]} Qd7 {[%emt 0:06:01]} 18. Rc1 {[%emt 0:01:51]} h6 {[%emt 0:04:26]} 19. c5 {[%emt 0:09:50]} dxc5 {[%emt 0:01:06]} 20. dxc5 {[%emt 0:01:15]} Qxd2 {[%emt 0:03:22]} 21. Rxd2 {[%emt 0:06:10]} Ba7 {[%emt 0:01:26]} 22. Nb5 {[%emt 0:01:15]} Rb3 {[%emt 0:05:24]} 23. Bxc6 {[%emt 0:01:22]} bxc6 {[%emt 0:02:20]} 24. Nxa7 {[%emt 0:00:10]} Rxb4 {[%emt 0:00:31]} 25. Nxc6 {[%emt 0:00:15]} Rb7 {[%emt 0:01:26]} 26. Nd4 {[%emt 0:01:58]} Bg6 {[%emt 0:03:55]} 27. c6 {[%emt 0:02:11]} Rbb8 {[%emt 0:05:02]} 28. Bf4 {[%emt 0:00:36]} Re7 {[%emt 0:01:48]} 29. Ra2 {[%emt 0:02:52]} Bd3 {[%emt 0:04:13]} 30. Ra3 {[%emt 0:00:50]} Bg6 {[%emt 0:01:10]} 31. Ra7 {[%emt 0:00:15]} Rc8 {[%emt 0:00:09]} 32. Nb5 {[%emt 0:00:24]} Kf8 {[%emt 0:02:36]} 33. Nxc7 {[%emt 0:01:32]} Kg8 {[%emt 0:01:36]} 34. Bd6 {[%emt 0:01:01]} Re4 {[%emt 0:01:50]} 35. Ra8 {[%emt 0:01:07]} Rxa8 {[%emt 0:02:37]} 36. Nxa8 {[%emt 0:00:06]} Bf5 {[%emt 0:00:10]} 37. c7 {[%emt 0:00:13]} Bc8 {[%emt 0:00:07]} 38. Nb6 {[%emt 0:00:05]} Re8 {[%emt 0:00:09]} 39. Nxc8 {[%emt 0:00:07]} Rxc8 {[%emt 0:00:09]} 40. Rb1 {[%emt 0:00:05] normal} 1-0

[Event "DVM U14w 2019"]
[Site "Neumuenster"]
[Date "2019.12.28"]
[Round "4"]
[White "Oswald, Hannah"]
[Black "Zhou, Lepu Coco"]
[Result "0-1"]
[ECO "C55"]
[WhiteElo "1647"]
[BlackElo "1892"]
[Annotator "NA"]
[PlyCount "84"]
[EventDate "2019.12.27"]
[EventType "team-tourn"]
[EventRounds "7"]
[EventCountry "GER"]
[SourceTitle "playchess.com"]
[Source "ChessBase"]
[SourceQuality "1"]
[WhiteTeam "SG Leipzig"]
[BlackTeam "USV Halle"]
[WhiteTeamCountry "GER"]
[BlackTeamCountry "GER"]
[TimeControl "40/5400+30:1800+30"]

1. e4 {[%emt 0:00:00]} e5 {[%emt 0:00:00]} 2. Nf3 {[%emt 0:00:00]} Nc6 {[%emt 0:00:00]} 3. Bc4 {[%emt 0:00:00]} Nf6 {[%emt 0:00:00]} 4. d3 {[%emt 0:00:32]} Be7 {[%emt 0:00:02]} 5. c3 {[%emt 0:00:45]} O-O {[%emt 0:00:13]} 6. O-O {[%emt 0:01:34]} d6 {[%emt 0:00:07]} 7. Nbd2 {[%emt 0:01:23]} Na5 {[%emt 0:00:09]} 8. Bb5 {[%emt 0:01:04]} a6 {[%emt 0:00:04]} 9. Ba4 {[%emt 0:00:16]} b5 {[%emt 0:00:03]} 10. Bc2 {[%emt 0:00:09]} c5 {[%emt 0:00:04]} 11. Re1 {[%emt 0:04:39]} Be6 {[%emt 0:02:56]} 12. Nf1 {[%emt 0:06:08]} Qc7 {[%emt 0:00:50]} 13. Ng3 {[%emt 0:07:17]} Rfc8 {[%emt 0:00:39]} 14. Bd2 {[%emt 0:15:24]} Rab8 {[%emt 0:03:24]} 15. h3 {[%emt 0:16:48]} c4 {[%emt 0:05:43]} 16. Qe2 {[%emt 0:14:01]} cxd3 {[%emt 0:01:45]} 17. Bxd3 {[%emt 0:01:41]} Nc4 {[%emt 0:00:36]} 18. Bxc4 {[%emt 0:03:40]} Bxc4 {[%emt 0:01:16]} 19. Qd1 {[%emt 0:00:46]} a5 {[%emt 0:02:16]} 20. Re3 {[%emt 0:05:37]} d5 {[%emt 0:07:08]} 21. b3 {[%emt 0:03:57]} dxe4 {[%emt 0:00:47]} 22. Nxe4 {[%emt 0:01:20]} Nxe4 {[%emt 0:00:57]} 23. Rxe4 {[%emt 0:01:13]} Bd5 {[%emt 0:00:07]} 24. Re1 {[%emt 0:01:24]} f6 {[%emt 0:01:55]} 25. Nh4 {[%emt 0:06:11]} Qc6 {[%emt 0:01:19]} 26. Nf5 {[%emt 0:01:51]} Bf8 {[%emt 0:00:28]} 27. Ne3 {[%emt 0:00:24]} Be4 {[%emt 0:00:44]} 28. f3 {[%emt 0:01:48]} Bg6 {[%emt 0:00:14]} 29. c4 {[%emt 0:01:13]} Rd8 {[%emt 0:00:59]} 30. Qe2 {[%emt 0:00:35]} Bd3 {[%emt 0:00:19]} 31. Qf2 {[%emt 0:00:38]} bxc4 {[%emt 0:00:18]} 32. Bxa5 {[%emt 0:00:34]} Rd7 {[%emt 0:00:57]} 33. bxc4 {[%emt 0:00:22]} Bc5 {[%emt 0:00:59]} 34. Kh1 {[%emt 0:00:54]} Bd4 {[%emt 0:00:13]} 35. Rad1 {[%emt 0:00:34]} Rb2 {[%emt 0:00:08]} 36. Rd2 {[%emt 0:00:36]} Rdb7 {[%emt 0:03:11]} 37. Qg3 {[%emt 0:01:00]} Rxd2 {[%emt 0:00:30]} 38. Bxd2 {[%emt 0:00:05]} Rb2 {[%emt 0:00:15]} 39. Ba5 {[%emt 0:01:57]} Rxa2 {[%emt 0:00:21]} 40. Bb4 {[%emt 0:00:45]} Bxe3 {[%emt 0:00:22]} 41. Rxe3 {[%emt 0:30:25]} Bf1 {[%emt 0:30:10]} 42. Qe1 {[%emt 0:00:00]} Bxg2+ {[%emt 0:00:00] normal} 0-1